bitfinex-derivatives/quotes_BTCF0:USTF0_20260207
["timestamp","ask_amount","ask_price","bid_price","bid_amount"]
[1770438613001,0.014048,71229.0,71195.0,0.2074611]
[1770438613002,0.53181948,71233.0,71202.0,0.56422762]
[1770438613202,0.53181948,71229.0,71202.0,0.56422762]
[1770438614304,0.014048,71230.0,71207.0,0.56422762]
[1770438614522,0.53181948,71239.0,71207.0,0.56422762]
[1770438614901,0.014049,71227.0,71207.0,0.56422762]
[1770438615506,0.01405,71223.0,71207.0,0.56422762]
[1770438615905,0.53181948,71231.0,71197.0,0.56422762]
[1770438616112,0.014051,71216.0,71197.0,0.56422762]
[1770438616503,0.53181948,71229.0,71197.0,0.56422762]
[1770438616504,0.01405,71220.0,71197.0,0.57828262]
[1770438616704,0.014051,71217.0,71197.0,0.56422762]
[1770438617108,0.014051,71214.0,71197.0,0.56422762]
[1770438617606,0.014053,71203.0,71187.0,0.56422762]
[1770438617806,0.014052,71212.0,71189.0,0.56422762]
[1770438618008,0.014052,71209.0,71189.0,0.56422762]
[1770438619112,0.014053,71206.0,71189.0,0.56422762]
[1770438619610,0.014053,71206.0,71176.0,0.27209501]
[1770438619611,0.014054,71200.0,71183.0,0.16494492]
[1770438619813,0.014054,71200.0,71180.0,0.16494492]
[1770438620014,0.014054,71200.0,71181.0,0.21106966]
[1770438620210,0.014055,71197.0,71179.0,0.56422762]
[1770438620512,0.014051,71214.0,71179.0,0.56422762]
[1770438620513,0.014049,71225.0,71208.0,0.56422762]
[1770438620814,0.014051,71218.0,71198.0,0.56422762]
[1770438621115,0.53181948,71239.0,71200.0,0.56422762]
[1770438621514,0.01405,71223.0,71202.0,0.56422762]
[1770438621711,0.01405,71223.0,71183.0,0.27209501]
[1770438621712,0.53181948,71228.0,71193.0,0.57828262]
[1770438621915,0.014052,71213.0,71193.0,0.56422762]
[1770438622310,0.014047,71236.0,71183.0,0.2074611]
[1770438622311,0.53181948,71221.0,71183.0,0.56422762]
[1770438622615,0.014053,71204.0,71183.0,0.56422762]
[1770438622814,0.53181948,71223.0,71190.0,0.56422762]
[1770438623010,0.014053,71205.0,71190.0,0.56422762]
[1770438624018,0.014054,71202.0,71181.0,0.67479981]
[1770438624217,0.014054,71202.0,71181.0,0.56422762]
[1770438624517,0.014055,71196.0,71181.0,0.56422762]
[1770438624711,0.014056,71191.0,71173.0,0.56422762]
[1770438624915,0.014057,71185.0,71173.0,0.56422762]
[1770438625316,0.53181948,71202.0,71173.0,0.56422762]
[1770438625618,0.014056,71188.0,71173.0,0.56422762]
[1770438626414,0.014057,71185.0,71164.0,0.014061]
[1770438626618,0.53181948,71198.0,71163.0,0.56422762]
[1770438626921,0.53181948,71186.0,71153.0,0.68886281]
[1770438627213,0.01406,71171.0,71153.0,0.56422762]
[1770438627417,0.014061,71165.0,71146.0,0.11057219]
[1770438627618,0.014062,71161.0,71143.0,0.56422762]
[1770438627920,0.53181948,71171.0,71143.0,0.56422762]
[1770438628118,0.53181948,71185.0,71149.0,0.014064]
[1770438628315,0.01406,71171.0,71149.0,0.014064]
[1770438628723,0.01406,71171.0,71146.0,0.56422762]
[1770438629017,0.01406,71171.0,71147.0,0.014064]
[1770438629313,0.01406,71171.0,71125.0,0.070545]
[1770438629314,0.014061,71164.0,71141.0,0.56422762]
[1770438629508,0.014059,71174.0,71146.0,0.56422762]
[1770438629921,0.01406,71171.0,71149.0,0.56422762]
[1770438630122,0.014061,71167.0,71149.0,0.56422762]
[1770438630421,0.53181948,71181.0,71149.0,0.56422762]
[1770438630616,0.014059,71173.0,71149.0,0.56422762]
[1770438631016,0.014061,71167.0,71149.0,0.56422762]
[1770438631419,0.014061,71165.0,71139.0,0.67479981]
[1770438631616,0.014062,71162.0,71139.0,0.56422762]
[1770438631821,0.014062,71162.0,71140.0,0.57829362]
[1770438632623,0.014061,71166.0,71140.0,0.56422762]
[1770438632816,0.014061,71167.0,71145.0,0.56422762]
[1770438633222,0.01406,71171.0,71146.0,0.57829262]
[1770438633422,0.01406,71168.0,71146.0,0.56422762]
[1770438634129,0.014057,71188.0,71163.0,0.56422762]
[1770438634318,0.014057,71186.0,71165.0,0.56422762]
[1770438635223,0.014058,71183.0,71165.0,0.56422762]
[1770438638830,0.014055,71194.0,71165.0,0.56422762]
[1770438639031,0.014058,71183.0,71165.0,0.56422762]
[1770438640330,0.014058,71180.0,71165.0,0.56422762]
[1770438640722,0.53181948,71197.0,71165.0,0.56422762]
[1770438640932,0.014057,71185.0,71165.0,0.56422762]
[1770438641227,0.014056,71189.0,71174.0,0.52678197]
[1770438641429,0.014057,71183.0,71164.0,0.52678197]
[1770438641933,0.014057,71187.0,71164.0,0.54084297]
[1770438642124,0.014057,71184.0,71164.0,0.54084297]
[1770438642924,0.014056,71192.0,71172.0,0.52678197]
[1770438645428,0.014057,71186.0,71172.0,0.52678197]
[1770438645633,0.014059,71177.0,71163.0,0.52678197]
[1770438645926,0.014059,71177.0,71155.0,0.2074611]
[1770438645927,0.57298061,71187.0,71157.0,0.54084397]
[1770438646133,0.57298061,71187.0,71157.0,0.52678197]
[1770438646832,0.58703761,71185.0,71157.0,0.52678197]
[1770438647226,0.01406,71168.0,71157.0,0.52678197]
[1770438647629,0.014061,71165.0,71149.0,0.11057219]
[1770438648128,0.014061,71165.0,71148.0,0.63735416]
[1770438648730,0.014063,71157.0,71139.0,0.63735416]
[1770438648933,0.014063,71157.0,71140.0,0.52678197]
[1770438649133,0.57298061,71181.0,71144.0,0.52678197]
[1770438649433,0.57298061,71190.0,71159.0,0.52678197]
[1770438649635,0.014059,71174.0,71159.0,0.52678197]
[1770438649931,0.014058,71183.0,71163.0,0.52678197]
[1770438650635,0.57298061,71198.0,71168.0,0.52678197]
[1770438650636,0.014057,71188.0,71168.0,0.52678197]
[1770438650828,0.014057,71185.0,71168.0,0.52678197]
[1770438651024,0.57298061,71190.0,71156.0,0.52678197]
[1770438651235,0.014059,71175.0,71156.0,0.52678197]
[1770438652034,0.01406,71172.0,71156.0,0.52678197]
[1770438652330,0.014059,71176.0,71156.0,0.52678197]
[1770438652730,0.014059,71176.0,71158.0,0.52678197]
[1770438652930,0.014059,71177.0,71160.0,0.52678197]
[1770438654538,0.014059,71177.0,71145.0,0.27209501]
[1770438654539,0.57298061,71182.0,71156.0,0.11057219]
[1770438654738,0.57298061,71182.0,71153.0,0.11057219]
[1770438654739,0.014057,71172.0,71153.0,0.11057219]
[1770438655042,0.014057,71172.0,71152.0,0.11057219]
[1770438655241,0.57298061,71182.0,71152.0,0.11057219]
[1770438655738,0.57298061,71182.0,71152.0,0.63735416]
[1770438655933,0.57298061,71174.0,71152.0,0.11057219]
[1770438656138,0.014062,71158.0,71143.0,0.52678197]
[1770438657338,0.57298061,71174.0,71143.0,0.52678197]
[1770438657536,0.01406,71169.0,71152.0,0.52678197]
[1770438657838,0.014061,71164.0,71152.0,0.52678197]
[1770438658440,0.014056,71188.0,71152.0,0.52678197]
[1770438658441,0.01406,71168.0,71152.0,0.52678197]
[1770438658643,0.57298061,71178.0,71152.0,0.52678197]
[1770438658837,0.014062,71162.0,71152.0,0.52678197]
[1770438659033,0.57298061,71178.0,71152.0,0.52678197]
[1770438659238,0.01406,71170.0,71152.0,0.52678197]
[1770438659447,0.57298061,71180.0,71152.0,0.52678197]
[1770438659842,0.014062,71160.0,71145.0,0.11057219]
[1770438660042,0.014063,71157.0,71143.0,0.52678197]
[1770438660237,0.014063,71157.0,71147.0,0.11057219]
[1770438660438,0.01406,71172.0,71147.0,0.11057219]
[1770438660633,0.57298061,71174.0,71147.0,0.63735416]
[1770438660842,0.01406,71169.0,71152.0,0.52678197]
[1770438661143,0.01406,71171.0,71160.0,0.52678197]
[1770438661338,0.57298061,71183.0,71157.0,0.11057219]
[1770438661541,0.014062,71159.0,71154.0,1.9e-07]
[1770438661737,0.014062,71159.0,71146.0,0.16494492]
[1770438661944,0.014062,71159.0,71147.0,0.21118596]
[1770438662146,0.014062,71159.0,71148.0,0.21118596]
[1770438662343,0.014062,71159.0,71149.0,0.21118596]
[1770438662551,0.014062,71159.0,71146.0,0.16494492]
[1770438662552,0.57298061,71178.0,71151.0,0.52678197]
[1770438662847,0.014055,71195.0,71161.0,0.52678197]
[1770438663046,0.57298061,71197.0,71168.0,0.52678197]
[1770438663354,0.014058,71181.0,71168.0,0.52678197]
[1770438664245,0.014058,71181.0,71168.0,0.52673197]
[1770438664750,0.014058,71181.0,71158.0,0.2074611]
[1770438664751,0.014056,71192.0,71172.0,0.52678197]
[1770438665048,0.014056,71189.0,71173.0,0.52678197]
[1770438665943,0.55902781,71206.0,71175.0,0.55794785]
[1770438666455,0.55902781,71206.0,71177.0,0.55794785]
[1770438666750,0.014055,71194.0,71177.0,0.55794785]
[1770438667161,0.014055,71198.0,71177.0,0.55794785]
[1770438667456,0.014055,71195.0,71177.0,0.55794785]
[1770438667643,0.55902781,71216.0,71185.0,0.55794785]
[1770438668257,0.014052,71211.0,71189.0,0.55794785]
[1770438668652,0.014053,71208.0,71189.0,0.55794785]
[1770438669355,0.014052,71212.0,71189.0,0.55794785]
[1770438669749,0.014051,71214.0,71197.0,0.56939727]
[1770438670759,0.01405,71219.0,71197.0,0.56939727]
[1770438670959,0.014051,71216.0,71197.0,0.56939727]
[1770438671163,0.014049,71225.0,71199.0,0.56939727]
[1770438671463,0.014048,71232.0,71210.0,0.56939727]
[1770438671960,0.014047,71237.0,71213.0,0.56939727]
[1770438672556,0.014046,71242.0,71215.0,0.56939727]
[1770438673061,0.53931798,71255.0,71220.0,0.56939727]
[1770438673460,0.014046,71244.0,71222.0,0.56939727]
[1770438673658,0.014046,71241.0,71222.0,0.56939727]
[1770438673961,0.014047,71235.0,71212.0,0.58344927]
[1770438674161,0.53931798,71246.0,71212.0,0.56939727]
[1770438674356,0.014048,71232.0,71212.0,0.56939727]
[1770438674659,0.01405,71223.0,71202.0,0.56939727]
[1770438675057,0.014049,71227.0,71202.0,0.56939727]
[1770438675665,0.53931798,71233.0,71202.0,0.56939727]
[1770438675866,0.53931798,71233.0,71183.0,0.0002]
[1770438675867,0.53931798,71225.0,71193.0,0.56939727]
[1770438676161,0.55336798,71222.0,71193.0,0.56939727]
[1770438676360,0.55336798,71222.0,71178.0,0.17900292]
[1770438676361,0.53931798,71233.0,71204.0,0.56939727]
[1770438677463,0.53931798,71245.0,71211.0,0.56939727]
[1770438677961,0.014047,71236.0,71213.0,0.56939727]
[1770438678961,0.53931798,71255.0,71215.0,0.56939727]
[1770438678962,0.014046,71240.0,71215.0,0.56939727]
[1770438679166,0.014046,71240.0,71217.0,0.56939727]
[1770438679361,0.014044,71249.0,71228.0,0.56939727]
[1770438680264,0.014042,71261.0,71228.0,0.56939727]
[1770438680459,0.014044,71250.0,71228.0,0.56939727]
[1770438680664,0.53931798,71260.0,71228.0,0.56939727]
[1770438680862,0.53931798,71260.0,71232.0,0.56939727]
[1770438681365,0.53931798,71260.0,71223.0,0.014049]
[1770438681565,0.53931798,71260.0,71223.0,0.58344627]
[1770438681766,0.53931798,71256.0,71223.0,0.58344627]
[1770438681967,0.53931798,71256.0,71227.0,0.56939727]
[1770438682162,0.014045,71248.0,71229.0,0.56939727]
[1770438682464,0.014044,71252.0,71232.0,0.56939727]
[1770438682768,0.014044,71249.0,71232.0,0.56939727]
[1770438684512,0.014045,71247.0,71232.0,0.56939727]
[1770438684670,0.042165,71244.0,71223.0,0.58344627]
[1770438684870,0.014045,71245.0,71223.0,0.56939727]
[1770438685171,0.014045,71245.0,71225.0,0.56939727]
[1770438685371,0.014046,71242.0,71225.0,0.56939727]
[1770438686372,0.014046,71239.0,71225.0,0.56939727]
[1770438686566,0.014046,71243.0,71225.0,0.56939727]
[1770438687168,0.53931798,71255.0,71225.0,0.56939727]
[1770438687363,0.53931798,71264.0,71229.0,0.56939727]
[1770438687564,0.014044,71254.0,71232.0,0.56939727]
[1770438687764,0.014043,71258.0,71235.0,0.56939727]
[1770438688275,0.014043,71258.0,71239.0,0.56939727]
[1770438688571,0.014043,71255.0,71239.0,0.56939727]
[1770438688773,0.014042,71259.0,71239.0,0.56939727]
[1770438689278,0.014042,71263.0,71241.0,0.56939727]
[1770438689778,0.014037,71286.0,71223.0,0.014049]
[1770438689779,0.014041,71267.0,71244.0,0.56939727]
[1770438690276,0.014041,71267.0,71246.0,0.56939727]
[1770438690665,0.01404,71271.0,71250.0,0.56939727]
[1770438690867,0.014039,71275.0,71252.0,0.56939727]
[1770438691574,0.014039,71275.0,71254.0,0.56939727]
[1770438691775,0.014037,71288.0,71254.0,0.56939727]
[1770438691776,0.01404,71272.0,71254.0,0.56939727]
[1770438692872,0.014039,71276.0,71256.0,0.56939727]
[1770438693068,0.01404,71270.0,71256.0,0.56939727]
[1770438693273,0.014041,71267.0,71256.0,0.56939727]
[1770438693472,0.53931798,71279.0,71256.0,0.56939727]
[1770438693676,0.014041,71269.0,71256.0,0.56939727]
[1770438694271,0.014041,71266.0,71247.0,0.56939727]
[1770438694477,0.01404,71270.0,71247.0,0.56939727]
[1770438694678,0.014041,71267.0,71247.0,0.56939727]
[1770438694974,0.53931798,71275.0,71247.0,0.56939727]
[1770438695279,0.014043,71258.0,71238.0,0.56939727]
[1770438696377,0.014044,71250.0,71238.0,0.56939727]
[1770438696577,0.53607708,71257.0,71229.0,0.52819703]
[1770438696772,0.014044,71249.0,71229.0,0.52819703]
[1770438696972,0.014046,71243.0,71229.0,0.52819703]
[1770438697668,0.53607708,71249.0,71219.0,0.52819703]
[1770438698074,0.53607708,71258.0,71226.0,0.52819703]
[1770438698281,0.53607708,71258.0,71228.0,0.52819703]
[1770438698781,0.014043,71257.0,71232.0,0.52819703]
[1770438699170,0.11132,71259.0,71239.0,0.52819703]
[1770438699977,0.11132,71259.0,71239.0,0.54224303]
[1770438700482,0.014043,71258.0,71239.0,0.54224303]
[1770438700780,0.014043,71255.0,71239.0,0.52819703]
[1770438701281,0.014042,71263.0,71244.0,0.52819703]
[1770438701685,0.53607708,71277.0,71248.0,0.52819703]
[1770438701882,0.014041,71265.0,71248.0,0.52819703]
[1770438702177,0.014041,71265.0,71243.0,0.014045]
[1770438702178,0.53607708,71275.0,71239.0,0.52819703]
[1770438702374,0.014043,71257.0,71239.0,0.52819703]
[1770438702575,0.014044,71252.0,71239.0,0.52819703]
[1770438703384,0.014045,71248.0,71230.0,0.52819703]
[1770438703682,0.014043,71257.0,71233.0,0.52819703]
[1770438703874,0.41999817,71300.0,71251.0,0.52819703]
[1770438703875,0.014036,71291.0,71251.0,0.52819703]
[1770438704080,0.014036,71291.0,71240.0,0.1383035]
[1770438704081,0.014035,71298.0,71265.0,0.52819703]
[1770438704474,0.014036,71292.0,71265.0,0.52819703]
[1770438704877,0.014037,71287.0,71265.0,0.52819703]
[1770438705182,0.014035,71299.0,71260.0,0.52819703]
[1770438705380,0.015035,71298.0,71265.0,0.52819703]
[1770438705579,0.014036,71293.0,71267.0,0.52819703]
[1770438705775,0.014032,71311.0,71277.0,0.52819703]
[1770438705976,0.53607708,71320.0,71277.0,0.52819703]
[1770438706185,0.53607708,71320.0,71280.0,0.52819703]
[1770438707179,0.53607708,71312.0,71269.0,0.52819703]
[1770438707378,0.014034,71303.0,71271.0,0.52819703]
[1770438708079,0.014034,71303.0,71271.0,0.54223703]
[1770438708278,0.014033,71309.0,71273.0,0.52819703]
[1770438708686,0.01403,71321.0,71290.0,0.52819703]
[1770438708985,0.01403,71321.0,71274.0,0.21079464]
[1770438708986,0.01403,71322.0,71292.0,0.52819703]
[1770438709777,0.014029,71328.0,71292.0,0.52819703]
[1770438709978,0.01403,71324.0,71294.0,0.52819703]
[1770438710381,0.014029,71329.0,71296.0,0.52819703]
[1770438710877,0.53607708,71329.0,71296.0,0.52819703]
[1770438711084,0.53607708,71329.0,71284.0,0.52819703]
[1770438711387,0.53607708,71324.0,71284.0,0.52819703]
[1770438711685,0.53607708,71324.0,71287.0,0.52819703]
[1770438711886,0.53607708,71324.0,71267.0,0.2074611]
[1770438711887,0.014032,71310.0,71278.0,0.014038]
[1770438712088,0.55010908,71310.0,71278.0,0.54223503]
[1770438712587,0.014032,71310.0,71278.0,0.54223503]
[1770438712775,0.53607708,71320.0,71278.0,0.54223503]
[1770438712776,0.014033,71306.0,71278.0,0.54223503]
[1770438712971,0.014034,71301.0,71278.0,0.52819703]
[1770438713584,0.014033,71306.0,71278.0,0.52819703]
[1770438714387,0.014028,71333.0,71303.0,0.014034]
[1770438714576,0.014028,71333.0,71301.0,0.52819703]
[1770438714577,0.01403,71325.0,71301.0,0.52819703]
[1770438714778,0.01403,71321.0,71301.0,0.52819703]
[1770438714982,0.01403,71321.0,71288.0,0.52819703]
[1770438715278,0.53307708,71333.0,71275.0,0.2074611]
[1770438715279,0.014029,71326.0,71294.0,0.52819703]
[1770438715480,0.53307708,71333.0,71299.0,0.52819703]
[1770438715880,0.014029,71327.0,71301.0,0.52819703]
[1770438716279,0.014028,71332.0,71301.0,0.52819703]
[1770438716987,0.01403,71323.0,71301.0,0.52819703]
[1770438717187,0.53607708,71341.0,71301.0,0.52819703]
[1770438717387,0.55010408,71338.0,71308.0,0.014033]
[1770438717584,0.53607708,71348.0,71317.0,0.52819703]
[1770438717782,0.014024,71351.0,71322.0,0.54222703]
[1770438717980,0.014025,71347.0,71322.0,0.52819703]
[1770438718179,0.53607708,71358.0,71324.0,0.52819703]
[1770438718385,0.014024,71354.0,71324.0,0.54222603]
[1770438718982,0.53607708,71358.0,71324.0,0.52819703]
[1770438719287,0.014021,71366.0,71339.0,0.52819703]
[1770438719689,0.53607708,71366.0,71328.0,0.52819703]
[1770438719886,0.53607708,71363.0,71328.0,0.52819703]
[1770438720089,0.55009908,71363.0,71331.0,0.54222503]
[1770438720281,0.014022,71364.0,71337.0,0.52819703]
[1770438720777,0.53607708,71369.0,71337.0,0.52819703]
[1770438720982,0.53607708,71369.0,71328.0,0.52819703]
[1770438721182,0.014021,71371.0,71335.0,0.52819703]
[1770438721382,0.014021,71371.0,71342.0,0.52819703]
[1770438721887,0.014016,71394.0,71320.0,0.2084575]
[1770438721888,0.53607708,71368.0,71332.0,0.52819703]
[1770438722087,0.53607708,71359.0,71332.0,0.52819703]
[1770438722487,0.014025,71349.0,71332.0,0.52819703]
[1770438722793,0.53607708,71354.0,71317.0,0.52819703]
[1770438722992,0.53607708,71350.0,71317.0,0.52819703]
[1770438723496,0.014026,71343.0,71317.0,0.52819703]
[1770438723788,0.53607708,71360.0,71324.0,0.52819703]
[1770438724096,0.014026,71344.0,71324.0,0.52819703]
[1770438724389,0.014027,71340.0,71314.0,0.014032]
[1770438724588,0.014027,71340.0,71314.0,0.54222903]
[1770438725585,0.014027,71340.0,71314.0,0.52819703]
[1770438725793,0.014027,71340.0,71314.0,0.54222803]
[1770438726386,0.014027,71336.0,71314.0,0.52819703]
[1770438726592,0.014028,71331.0,71305.0,0.56749508]
[1770438726795,0.52883622,71342.0,71308.0,0.55346208]
[1770438726996,0.52883622,71352.0,71319.0,0.55346208]
[1770438727197,0.014025,71347.0,71322.0,0.55346208]
[1770438728084,0.014026,71344.0,71322.0,0.55346208]
[1770438728890,0.014025,71348.0,71322.0,0.55346208]
[1770438729092,0.55163442,71349.0,71312.0,0.57826399]
[1770438729293,0.02812,71331.0,71312.0,0.57826399]
[1770438729493,0.55163442,71345.0,71312.0,0.57826399]
[1770438729694,0.55163442,71345.0,71312.0,0.59229599]
[1770438730494,0.55163442,71345.0,71312.0,0.57826399]
[1770438731089,0.014027,71336.0,71312.0,0.57826399]
[1770438731391,0.55163442,71341.0,71312.0,0.57826399]
[1770438731594,0.014029,71325.0,71312.0,0.57826399]
[1770438731794,0.014029,71329.0,71312.0,0.57826399]
[1770438731991,0.55163442,71341.0,71312.0,0.57826399]
[1770438731992,0.014029,71325.0,71312.0,0.57826399]
[1770438732701,0.014029,71325.0,71303.0,0.59229799]
[1770438732904,0.01403,71322.0,71303.0,0.57826399]
[1770438733295,0.014031,71320.0,71303.0,0.57826399]
[1770438733492,0.01403,71324.0,71303.0,0.57826399]
[1770438734103,0.01403,71324.0,71293.0,0.1649559]
[1770438734104,0.55163442,71346.0,71307.0,0.57826399]
[1770438734302,0.014027,71339.0,71316.0,0.57826399]
[1770438734699,0.014027,71336.0,71316.0,0.57826399]
[1770438735301,0.014027,71336.0,71316.0,0.59229499]
[1770438735703,0.014027,71336.0,71316.0,0.57826399]
[1770438736410,0.55163442,71342.0,71316.0,0.57826399]
[1770438736611,0.014029,71329.0,71308.0,0.10940452]
[1770438736907,0.014029,71329.0,71309.0,0.59229699]
[1770438737204,0.01403,71323.0,71301.0,0.12343852]
[1770438737411,0.01403,71321.0,71300.0,0.68766851]
[1770438737601,0.014031,71319.0,71300.0,0.68766851]
[1770438737806,0.014031,71319.0,71300.0,0.57826399]
[1770438738110,0.014031,71317.0,71300.0,0.57826399]
[1770438739103,0.014031,71317.0,71299.0,0.10940452]
[1770438739104,0.55163442,71333.0,71302.0,0.57826399]
[1770438739904,0.014028,71330.0,71302.0,0.57826399]
[1770438740313,0.014032,71313.0,71294.0,0.10940452]
[1770438740498,0.014032,71313.0,71294.0,0.57826399]
[1770438741408,0.014031,71317.0,71296.0,0.57826399]
[1770438741812,0.01403,71323.0,71301.0,0.57826399]
[1770438742110,0.01403,71320.0,71301.0,0.57826399]
[1770438742510,0.014028,71331.0,71305.0,0.57826399]
[1770438742718,0.014029,71329.0,71308.0,0.57826399]
[1770438743517,0.55163442,71347.0,71314.0,0.57826399]
[1770438743717,0.014028,71335.0,71314.0,0.57826399]
[1770438744723,0.55163442,71347.0,71314.0,0.57826399]
[1770438745009,0.01403,71323.0,71304.0,0.68766851]
[1770438745209,0.01403,71323.0,71304.0,0.57826399]
[1770438745409,0.01403,71320.0,71304.0,0.57826399]
[1770438745806,0.55163442,71350.0,71322.0,0.57826399]
[1770438746110,0.014026,71342.0,71322.0,0.57826399]
[1770438748411,0.014025,71346.0,71322.0,0.59229399]
[1770438748612,0.014024,71350.0,71326.0,0.59229299]
[1770438748813,0.55163442,71360.0,71326.0,0.57826399]
[1770438749916,0.014026,71341.0,71326.0,0.57826399]
[1770438750120,0.55163442,71352.0,71316.0,0.68843954]
[1770438750309,0.014023,71359.0,71316.0,0.68843954]
[1770438750310,0.014027,71338.0,71317.0,0.32085482]
[1770438750614,0.014027,71338.0,71316.0,0.57826399]
[1770438750615,0.014027,71338.0,71316.0,0.68843954]
[1770438750814,0.014027,71338.0,71317.0,0.59229499]
[1770438751011,0.55163442,71350.0,71320.0,0.01403]
[1770438751012,0.014026,71342.0,71320.0,0.01403]
[1770438751208,0.014026,71342.0,71321.0,0.57826399]
[1770438751813,0.55163442,71350.0,71323.0,0.57826399]
[1770438752217,0.55163442,71360.0,71323.0,0.57826399]
[1770438752521,0.014025,71347.0,71325.0,0.57826399]
[1770438753019,0.014026,71344.0,71325.0,0.57826399]
[1770438753213,0.014025,71348.0,71325.0,0.57826399]
[1770438753407,0.55163442,71360.0,71325.0,0.57826399]
[1770438753712,0.56565742,71360.0,71325.0,0.57826399]
[1770438753912,0.55163442,71360.0,71330.0,0.57826399]
[1770438754222,0.55163442,71369.0,71337.0,0.57826399]
[1770438754419,0.55163442,71369.0,71339.0,0.57826399]
[1770438754609,0.55163442,71355.0,71330.0,0.11017555]
[1770438754814,0.014025,71347.0,71330.0,0.11017555]
[1770438755014,0.014025,71347.0,71329.0,0.11017555]
[1770438755211,0.014025,71347.0,71326.0,0.11017555]
[1770438755423,0.014026,71340.0,71324.0,0.57826399]
[1770438756820,0.014027,71337.0,71324.0,0.57826399]
[1770438757217,0.014027,71338.0,71324.0,0.57826399]
[1770438757420,0.014028,71335.0,71324.0,0.57826399]
[1770438760119,0.014028,71332.0,71315.0,0.66303159]
[1770438760719,0.014028,71332.0,71290.0,0.41510018]
[1770438760720,0.014026,71341.0,71322.0,0.55285604]
[1770438761017,0.014027,71338.0,71322.0,0.55285604]
[1770438762120,0.014027,71338.0,71322.0,0.55385604]
[1770438762724,0.014027,71338.0,71322.0,0.55285604]
[1770438763523,0.56476432,71355.0,71322.0,0.55285604]
[1770438764118,0.014027,71335.0,71322.0,0.55285604]
[1770438764821,0.57878832,71352.0,71322.0,0.55285604]
[1770438765016,0.014027,71338.0,71322.0,0.55285604]
[1770438765225,0.014027,71338.0,71322.0,0.55385604]
[1770438765928,0.014027,71338.0,71322.0,0.55285604]
[1770438766925,0.014027,71335.0,71322.0,0.55285604]
[1770438767124,0.56476432,71342.0,71318.0,0.11017555]
[1770438767330,0.014032,71310.0,71304.0,0.1649559]
[1770438767517,0.014033,71307.0,71294.0,0.27877556]
[1770438767723,0.014032,71311.0,71294.0,0.27877556]
[1770438767920,0.014031,71320.0,71294.0,0.29281056]
[1770438768128,0.014031,71320.0,71298.0,0.27877556]
[1770438769241,0.014031,71317.0,71298.0,0.27877556]
[1770438769441,0.01403,71321.0,71298.0,0.27877556]
[1770438769637,0.56476432,71340.0,71305.0,0.25250715]
[1770438770236,0.014028,71331.0,71307.0,0.25250715]
[1770438770437,0.014028,71331.0,71309.0,0.25250715]
[1770438770634,0.014029,71327.0,71310.0,0.21070881]
[1770438770840,0.014029,71325.0,71311.0,0.25250715]
[1770438771844,0.014026,71343.0,71311.0,0.25250715]
[1770438772142,0.014029,71327.0,71311.0,0.25250715]
[1770438773237,0.01403,71321.0,71311.0,0.25250715]
[1770438773440,0.01403,71321.0,71303.0,0.43879505]
[1770438773644,0.01403,71321.0,71304.0,0.21072044]
[1770438773943,0.01403,71321.0,71305.0,0.21072044]
[1770438774241,0.56476432,71331.0,71303.0,0.27383915]
[1770438774435,0.014031,71318.0,71303.0,0.27383915]
[1770438775444,0.014031,71318.0,71303.0,0.27483915]
[1770438777540,0.014031,71315.0,71303.0,0.27483915]
[1770438777739,0.014031,71315.0,71303.0,0.27383915]
[1770438777942,0.014031,71319.0,71303.0,0.27483915]
[1770438778448,0.014031,71319.0,71303.0,0.27383915]
[1770438778747,0.014031,71316.0,71303.0,0.27483915]
[1770438778948,0.014032,71313.0,71303.0,0.27483915]
[1770438779345,0.014031,71317.0,71303.0,0.27483915]
[1770438780042,0.014032,71314.0,71303.0,0.27483915]
[1770438780952,0.014032,71314.0,71303.0,0.27383915]
[1770438781247,0.014031,71316.0,71303.0,0.27383915]
[1770438781952,0.014031,71316.0,71303.0,0.27483915]
[1770438782743,0.014031,71320.0,71303.0,0.27483915]
[1770438783250,0.56476432,71328.0,71303.0,0.27483915]
[1770438783446,0.014031,71317.0,71303.0,0.27383915]
[1770438786451,0.01403,71320.0,71303.0,0.27383915]
[1770438787348,0.01403,71320.0,71303.0,0.27483915]
[1770438788049,0.01403,71320.0,71303.0,0.27383915]
[1770438788247,0.014027,71338.0,71305.0,0.24471406]
[1770438788449,0.014027,71337.0,71305.0,0.24471406]
[1770438788643,0.014029,71326.0,71308.0,0.24471406]
[1770438789057,0.014029,71326.0,71308.0,0.25874706]
[1770438789752,0.01403,71324.0,71308.0,0.24471406]
[1770438790253,0.01403,71324.0,71308.0,0.25874706]
[1770438791852,0.014029,71327.0,71308.0,0.25874706]
[1770438792650,0.55035462,71334.0,71297.0,0.1649559]
[1770438792850,0.55035462,71334.0,71266.0,0.5599245]
[1770438792851,0.55035462,71322.0,71299.0,0.2473327]
[1770438793054,0.014028,71331.0,71299.0,0.2473327]
[1770438793055,0.55035462,71330.0,71299.0,0.2473327]
[1770438793558,0.014032,71314.0,71299.0,0.2473327]
[1770438793757,0.014032,71314.0,71308.0,0.001]
[1770438794556,0.014032,71314.0,71299.0,0.2473327]
[1770438794758,0.014029,71328.0,71299.0,0.2473327]
[1770438795560,0.55035462,71338.0,71303.0,0.28268143]
[1770438796058,0.55035462,71338.0,71309.0,0.28268143]
[1770438796453,0.01403,71321.0,71309.0,0.28268143]
[1770438796749,0.014032,71313.0,71301.0,0.28268143]
[1770438797160,0.014032,71311.0,71301.0,0.28268143]
[1770438798457,0.55035462,71322.0,71289.0,0.1649559]
[1770438798764,0.014033,71307.0,71291.0,0.27805336]
[1770438798965,0.014033,71307.0,71292.0,0.21074166]
[1770438799167,0.014033,71307.0,71291.0,0.29208936]
[1770438799463,0.014032,71310.0,71301.0,0.001]
[1770438800167,0.014032,71310.0,71294.0,0.27364658]
[1770438800463,0.014032,71310.0,71298.0,0.27364658]
[1770438800656,0.014032,71310.0,71299.0,0.21074182]
[1770438800858,0.014032,71310.0,71300.0,0.21074182]
[1770438801057,0.014032,71310.0,71298.0,0.27364658]
[1770438801258,0.014032,71310.0,71301.0,0.001]
[1770438801956,0.55035462,71328.0,71302.0,0.2760548]
[1770438802567,0.014031,71318.0,71302.0,0.2760548]
[1770438802762,0.014028,71334.0,71302.0,0.2760548]
[1770438802960,0.014028,71334.0,71304.0,0.2620238]
[1770438803261,0.55035462,71336.0,71304.0,0.2620238]
[1770438803262,0.55035462,71342.0,71305.0,0.2107321]
[1770438803469,0.014029,71327.0,71308.0,0.42818227]
[1770438803760,0.014029,71327.0,71307.0,0.014033]
[1770438803761,0.014029,71326.0,71310.0,0.24919637]